[Event "DFMM-LV 2023"]
[Site "Braunfels"]
[Date "2023.06.10"]
[Round "4.27"]
[White "Barpiyeva, Gulsana"]
[Black "Albayrak, Berrak"]
[Result "1-0"]
[Annotator "TA"]
[ECO "E87"]
[WhiteElo "2023"]
[BlackElo "1664"]
[PlyCount "157"]
[EventDate "2023.06.09"]
[EventType "team-tourn"]
[EventCountry "GER"]
[SourceTitle "playchess.com"]
[Source "ChessBase"]
[SourceQuality "1"]
[TimeControl "40/5400+30:1800+30"]

{[%evp 15,157,66,67,66,67,64,100,84,77,85,94,43,42,32,58,44,56,-57,-53,-236,15,0,0,-34,-40,-64,-67,-61,-61,-94,-73,-72,-58,-79,33,41,39,0,0,-43,-45,-40,22,14,10,0,-3,-35,-47,-35,-42,-54,0,-44,0,-121,-109,-169,-175,-245,-221,-210,-248,-231,-151,-189,0,-165,0,-424,-8,-8,-31,-85,-11,0,87,29,35,0,336,298,276,239,239,202,360,346,353,346,346,345,335,202,294,284,320,277,250,0,0,0,0,-181,-181,-216,-198,-195,-163,-166,0,0,0,0,0,0,0,0,0,0,8,8,568,561,561,561,554,553,553,553,548,518,951,934,29979,-178,29971,686,6099,0,675,594,742,0]} 1. d4 {[%emt 0:00:03]} d6 {[%emt 0:00:11]} 2. c4 {[%emt 0:00:13]} Nf6 {[%emt 0:00:17]} 3. Nc3 {[%emt 0:00:13]} g6 {[%emt 0:00:14]} 4. e4 {[%emt 0:00:13]} Bg7 {[%emt 0:00:16]} 5. f3 {[%emt 0:00:16]} O-O {[%emt 0:00:48]} 6. Be3 {[%emt 0:00:22]} e5 {[%emt 0:00:22]} 7. d5 {[%emt 0:00:31]} Nbd7 {[%emt 0:08:40]} 8. Nh3 {[%emt 0:01:35]} a5 {[%emt 0:02:16]} 9. Qd2 {[%emt 0:00:54] White is more active. E87: King's Indian: Sämisch: 6...e5 7 d5.} Nc5 {[%emt 0:01:34]} 10. Nf2 {[%emt 0:00:16]} Ne8 {[%emt 0:11:29]} 11. g4 {[%emt 0:05:57] White is better.} f5 {[%emt 0:04:51]} 12. gxf5 {[%emt 0:00:18]} gxf5 {[%emt 0:00:09]} 13. Bg5 {[%emt 0:00:33] Prevents Qh4} (13. h4 $16) 13... Bf6 $14 {[%emt 0:13:44] [#]} 14. Bh6 $146 {[%emt 0:02:48]} ({Predecessor:} 14. Rg1 Kh8 15. O-O-O Bxg5 16. Rxg5 f4 17. h4 Rg8 18. Nh3 Rxg5 19. hxg5 Bxh3 20. Bxh3 Qxg5 {0-1 Kowzan,P (2256)-Guliev,L (2371) Polanica Zdroj op 2001 (4)}) 14... Rf7 {[%emt 0:03:44]} 15. O-O-O {[%emt 0:02:39]} f4 {[%emt 0:03:30]} 16. Bd3 {[%emt 0:07:00]} (16. Rg1+ $14 Kh8 17. Nd3) 16... Kh8 $15 {[%emt 0:05:10]} 17. Rdg1 $2 {[%emt 0:01:07]} (17. Rhg1 $15) 17... Bg7 $2 {[%emt 0:02:18]} (17... Bh4 $1 $19 {[%cal Rh4f2] Strongly threatening ...Bxf2.} 18. Ng4 Nf6) 18. Bg5 {[%emt 0:00:57]} Bf6 {[%emt 0:01:28]} 19. h4 {[%emt 0:02:17]} Rg7 {[%emt 0:04:06][%cal Rf6g5]} 20. Bf1 {[%emt 0:25:49]} Bxg5 {[%emt 0:03:49]} 21. hxg5 {[%emt 0:01:21]} Rxg5 {[%emt 0:02:45]} 22. Nh3 {[%emt 0:05:33]} Bxh3 {[%emt 0:04:52]} 23. Bxh3 {[%emt 0:00:15]} Rxg1+ {[%emt 0:07:31]} 24. Rxg1 {[%emt 0:00:02] White wants to mate with Qg2.} Qh4 {[%emt 0:04:19]} (24... Nf6 $17) 25. Qg2 $36 {[%emt 0:04:20][%csl Gg1][%cal Rg2g8][%mdl 3072] White has compensation. White is more active.} Qg3 {[%emt 0:00:24] Repels Qg8+} 26. Qf1 {[%emt 0:02:56]} (26. Qxg3 {simplifies} fxg3 27. Rxg3 Nf6 28. Nb5) 26... Qh4 {[%emt 0:02:00]} 27. Bf5 {[%emt 0:05:40] Hoping for Qg2.} (27. Qg2 $5 {[%cal Rg2g8]} Qg3 28. Qxg3 fxg3 29. Rxg3 $14) 27... Nf6 $1 {[%emt 0:01:52]} (27... Qh2 28. Ne2 Nf6 29. Rh1 $18) 28. Nb5 {[%emt 0:03:14]} (28. Qg2 $2 Rg8 29. Qf1 Nd3+ 30. Kd2 Qh2+ 31. Ne2 Rxg1 32. Qxg1 Qxg1 33. Nxg1 Nxb2 $19) 28... Na6 {[%emt 0:04:46]} (28... Qh2 29. Rg2 Qh4 30. Nxc7 $14) (28... Rg8 $1 $15 29. Rxg8+ (29. Nxc7 Nd3+ 30. Kb1 Rxg1 $11) 29... Kxg8) 29. Rh1 $11 {[%emt 0:00:48]} (29. Qg2 Rg8 30. Qf1 Qh2 31. Rxg8+ Nxg8 $17) 29... Qg5 {[%emt 0:03:42]} 30. Qh3 {[%emt 0:01:03][%cal Rf5h7]} Qg7 {[%emt 0:00:57]} 31. Qh4 {[%emt 0:06:09][%cal Oc4c5]} Rf8 {[%emt 0:00:55]} 32. a3 {[%emt 0:03:11]} Qg3 {[%emt 0:00:58]} 33. Qh6 {[%emt 0:01:51]} (33. Bxh7 $2 Qxh4 34. Rxh4 Nxh7 $19) 33... Qg7 {[%emt 0:00:25]} (33... Rf7 $1 $15 34. Be6 Ng8) 34. Qh3 {[%emt 0:00:55]} Qg3 {[%emt 0:00:59]} 35. Qf1 {[%emt 0:00:29]} (35. Bxh7 $2 {perishes.} Qxh3 36. Rxh3 Nxh7 $19) (35. Qh6 $11 Qg7 36. Qxg7+ Kxg7 37. Kc2) 35... Rg8 $1 $17 {[%emt 0:01:11]} 36. Be6 {[%emt 0:01:44]} (36. Kb1 $17) 36... Rg7 $19 {[%emt 0:01:00]} 37. Rh3 {[%emt 0:04:58]} (37. Bh3 $142) 37... Qg2 {[%emt 0:00:42]} 38. Qxg2 {[%emt 0:00:44]} Rxg2 {[%emt 0:00:05]} 39. Bc8 {[%emt 0:01:47]} Rg3 {[%emt 0:00:40]} 40. Kd2 {[%emt 0:01:22]} Rg2+ $2 {[%emt 0:00:51]} (40... Rg8 $19 41. Bf5 Rg2+ 42. Kc3 Rg3) 41. Kc3 $2 {[%emt 0:32:50]} (41. Kc1 $1 $11) 41... Rg3 $2 {[%emt 0:02:50]} ({Better is} 41... Rg8 $19 42. Bf5 Rg3) 42. b4 $2 {[%emt 0:00:00][%mdl 8192]} (42. Kd2 $1 $11) 42... Rxh3 $2 {[%emt 0:07:17]} (42... Nxe4+ $2 43. Kb2 Ng5 44. Rh1 axb4 45. axb4 Rxf3 46. c5 dxc5 47. d6 cxd6 48. Bxb7 Rf2+ 49. Kb3 Nxb4 50. Nxd6 $19) (42... axb4+ $19 43. Kb2 b3 44. Kxb3 Nxe4) 43. Bxh3 $11 {[%emt 0:00:00]} axb4+ {[%emt 0:04:06]} 44. axb4 $19 {[%emt 0:00:00][%cal Oc4c5][%mdl 4096] Endgame KBN-KNN} h5 {[%emt 0:00:25]} (44... Kg7 $17) 45. c5 $1 $11 {[%emt 0:00:00][%cal Bc4c5,Bc5c6][%mdl 32]} Ne8 {[%emt 0:05:18]} (45... dxc5 $11 46. bxc5 c6) 46. Kc4 {[%emt 0:00:00]} ({White should try} 46. c6 $1 $16 {[%cal Rc6b7]}) 46... Kg7 {[%emt 0:01:37]} 47. Nc3 {[%emt 0:00:00] Black must now prevent c6.} Kf6 $2 {[%emt 0:06:26][%mdl 8192]} (47... dxc5 $11 {and Black is okay.} 48. bxc5 b6) 48. c6 $1 $18 {[%emt 0:00:00]} b6 {[%emt 0:03:44]} (48... bxc6 49. dxc6 d5+ 50. Nxd5+ (50. Kxd5 $2 {loses.} Nxb4+ 51. Kc5 Nd3+ 52. Kd5 h4 $19) 50... Kg5 51. Kb5 $18) 49. Bc8 {[%emt 0:00:00]} h4 {[%emt 0:00:32]} 50. Nd1 {[%emt 0:00:00]} (50. Bxa6 h3 51. Nd1 Kg5 $11) 50... Nb8 {[%emt 0:00:27]} (50... h3 {might work better.}) 51. Nf2 {[%emt 0:00:00]} Ke7 {[%emt 0:00:50]} 52. b5 {[%emt 0:00:00]} Nf6 {[%emt 0:01:03]} 53. Kd3 {[%emt 0:00:00]} Nh5 {[%emt 0:00:44]} 54. Nh3 {[%emt 0:00:00] And now Ke2 would win.} Kf6 {[%emt 0:00:42]} (54... Ng3 {keeps fighting.} 55. Nf2 Kf6) 55. Ke2 {[%emt 0:00:00]} Ng3+ {[%emt 0:00:34]} 56. Kf2 {[%emt 0:00:00]} Nh1+ {[%emt 0:00:55]} 57. Kg2 $2 {[%emt 0:00:00]} (57. Ke1 $18) 57... Ng3 $11 {[%emt 0:00:06]} 58. Nf2 {[%emt 0:03:55]} Ne2 {[%emt 0:01:11]} 59. Nd3 $2 {[%emt 0:01:14]} (59. Nd1 $11 {and White stays safe.}) 59... Nd4 $19 {[%emt 0:00:41]} 60. Ba6 {[%emt 0:02:02] [#]} h3+ $1 {[%emt 0:00:31][%mdl 576] Deflection} 61. Kxh3 {[%emt 0:01:34]} Nxf3 {[%emt 0:00:05] Threatens to win with ...Ng5+.} 62. Kg4 {[%emt 0:00:22] [#]} Nd2 $2 {[%emt 0:00:42]} (62... Nd4 $1 $19 {...Ke7 would be deadly.} 63. Nb2 Ke7) 63. Nf2 $11 {[%emt 0:00:25]} Nb3 {[%emt 0:00:36]} 64. Nd1 $1 {[%emt 0:01:20]} Nc5 {[%emt 0:00:14][%csl LRa6,LRe4]} 65. Bc8 $1 {[%emt 0:01:58]} Nxe4 {[%emt 0:00:19]} 66. Bf5 {[%emt 0:01:23]} Nd2 {[%emt 0:00:47]} 67. Bc2 {[%emt 0:00:58]} f3 {[%emt 0:00:41]} 68. Nf2 {[%emt 0:00:48]} e4 $2 {[%emt 0:00:35][%mdl 8192]} 69. Kf4 $18 {[%emt 0:00:38]} e3 {[%emt 0:00:32]} 70. Kxe3 {[%emt 0:00:14]} Nc4+ {[%emt 0:00:26]} 71. Kd4 {[%emt 0:01:06]} ({Not} 71. Kxf3 Ke5 $11) 71... Ne5 {[%emt 0:00:38]} 72. Ne4+ {[%emt 0:01:01]} Ke7 {[%emt 0:00:08]} 73. Ke3 {[%emt 0:00:21]} Kd8 {[%emt 0:00:52]} (73... Nbxc6 $142 74. bxc6 Ke8) 74. Ng5 {[%emt 0:00:50]} Nf7 {[%emt 0:00:26]} 75. Kxf3 $4 {[%emt 0:00:17][%mdl 8192]} (75. Nxf7+ {mates} Ke7 76. Ng5 f2 77. Kxf2 Kf8 78. Ne6+ Ke7 79. Nxc7 Nd7 80. Na8) 75... Ke7 $4 {[%emt 0:00:15][%mdl 8192]} (75... Nxg5+ $19 76. Kf4 Nf7) 76. Kg4 {[%emt 0:00:33]} (76. Nxf7 $142 Kxf7 77. Be4 Kg7 78. Kg4 Kf6 79. Kf4 Kg7 80. Kg5 Kf7 81. Bg6+ Kg7 82. Bc2) 76... Kf6 {[%emt 0:00:22]} 77. Nf3 $2 {[%emt 0:00:19]} (77. Nxf7 $18 Kxf7 78. Kf5) 77... Nh6+ $2 {[%emt 0:00:44][%mdl 8192]} (77... Ne5+ $11 78. Kf4 Nxf3) 78. Kf4 {[%emt 0:00:30]} Ng8 {[%emt 0:00:30]} 79. Kg4 $2 {[%emt 0:00:39][%mdl 32768] Both players deserved the win here.   Weighted Error Value: White=0.52/Black=0.55. Sensor Board Error (Ke4/e5)?} (79. Nd4 $18 Ne7 80. Ke4) 1-0

[Event "DFMM-LV 2023"]
[Site "Braunfels"]
[Date "2023.06.10"]
[Round "4.28"]
[White "Prinzen, Siri Marleen"]
[Black "Lukas, Anne"]
[Result "0-1"]
[Annotator "TA"]
[ECO "E61"]
[WhiteElo "1724"]
[BlackElo "2057"]
[PlyCount "126"]
[EventDate "2023.06.09"]
[EventType "team-tourn"]
[EventCountry "GER"]
[SourceTitle "playchess.com"]
[Source "ChessBase"]
[SourceQuality "1"]
[TimeControl "40/5400+30:1800+30"]

{[%evp 9,126,10,20,24,41,10,13,0,4,1,23,8,42,13,80,67,78,26,96,35,91,77,83,88,82,-12,0,-3,52,20,25,17,37,38,70,42,57,51,59,50,39,25,24,13,30,18,22,0,0,0,0,0,18,-3,0,0,41,31,282,273,280,16,29,0,0,0,0,-32,0,0,25,0,0,0,25,14,16,0,0,-26,31,-116,-79,-224,-192,-187,-187,-222,-184,-269,-263,-278,-228,-233,-179,-197,-166,-162,-137,-299,-256,-530,-421,-566,-524,-633,-569,-741,-669,-1208,-1042,-1914,-1963,-1840,-1708,-1959,-1989,-1812,-1735]} 1. d4 {[%emt 0:00:02]} Nf6 {[%emt 0:00:07]} 2. Bf4 {[%emt 0:00:04]} g6 {[%emt 0:00:20]} 3. c4 {[%emt 0:00:18]} Bg7 {[%emt 0:00:19]} 4. Nc3 {[%emt 0:00:35]} d6 {[%emt 0:00:07]} 5. e3 {[%emt 0:02:26]} Nfd7 {[%emt 0:00:05]} 6. Nf3 {[%emt 0:06:36] E61: King's Indian: Early deviations for White, including Smyslov System.} e5 {[%emt 0:00:23]} 7. dxe5 {[%emt 0:01:21]} dxe5 {[%emt 0:00:05] [#]} 8. Bg3 $146 {[%emt 0:00:44] The position is equal.} ({Predecessor:} 8. Bg5 f6 9. Bh4 O-O 10. Be2 Nc6 11. O-O Ne7 12. Qc2 Nf5 13. Rad1 Nxh4 14. Nxh4 {1-0 Lampersberger,P (1820)-Steiner,D (1605) Feffernitz Raika op 05th 1996}) 8... O-O {[%emt 0:00:09]} 9. Be2 {[%emt 0:04:06]} Nc6 {[%emt 0:00:05]} 10. O-O {[%emt 0:06:14]} Kh8 {[%emt 0:00:10]} 11. Qd2 {[%emt 0:04:48]} Ne7 {[%emt 0:00:30]} (11... Nc5 $11 {remains equal.}) 12. Rad1 {[%emt 0:03:08][%cal Of3e5]} f6 {[%emt 0:01:07]} 13. h3 {[%emt 0:03:33]} ({White should play} 13. e4 $16) 13... c6 {[%emt 0:03:14]} (13... Nf5 $11) 14. b4 {[%emt 0:03:15]} (14. e4 $16) 14... Qe8 {[%emt 0:03:47]} (14... a5 $14) 15. Ne4 $16 {[%emt 0:03:33] [#] And now Nd6 would win.} Nf5 {[%emt 0:01:17]} 16. Bh2 {[%emt 0:06:09] Strongly threatening g4.} Nb6 {[%emt 0:10:12]} 17. Nc3 {[%emt 0:04:51]} (17. c5 $16 Nd5 18. g4) 17... Be6 $11 {[%emt 0:02:56]} 18. c5 {[%emt 0:02:57]} Nc8 {[%emt 0:01:38]} ({Better is} 18... Nc4 $11 19. Qc1 b5) 19. e4 {[%emt 0:04:09]} Nh6 {[%emt 0:02:20]} 20. Qc2 {[%emt 0:06:12]} Nf7 {[%emt 0:02:11]} 21. Nd2 {[%emt 0:06:17]} Ne7 {[%emt 0:01:41]} 22. Nc4 {[%emt 0:02:10]} (22. Bc4 $5 {[%cal Rc4e6]} Nd8 23. Qb3 $16) 22... Rd8 {[%emt 0:02:38]} 23. Rxd8 {[%emt 0:01:50]} Qxd8 {[%emt 0:00:05]} 24. Rd1 {[%emt 0:00:07]} Qc7 {[%emt 0:00:24]} 25. Nd6 {[%emt 0:04:31]} Nc8 {[%emt 0:00:22]} 26. Nxf7+ {[%emt 0:02:35]} Qxf7 {[%emt 0:01:02]} 27. Kh1 {[%emt 0:06:32]} a6 {[%emt 0:06:13]} 28. Rb1 {[%emt 0:03:48]} Rd8 {[%emt 0:02:12]} 29. Rd1 {[%emt 0:00:41]} Qc7 {[%emt 0:00:05]} 30. a4 {[%emt 0:02:54]} Bf8 {[%emt 0:02:39]} 31. a5 {[%emt 0:03:25]} Bh6 {[%emt 0:01:26]} 32. Bg4 {[%emt 0:02:32]} Rxd1+ {[%emt 0:08:09]} 33. Qxd1 {[%emt 0:00:09]} f5 $2 {[%emt 0:01:01][%mdl 8192]} (33... Bf7 $14) 34. exf5 $18 {[%emt 0:01:45]} gxf5 {[%emt 0:01:31]} 35. Bh5 {[%emt 0:00:30]} (35. Bxf5 $18 Bxf5 36. Qh5) 35... Bg7 $11 {[%emt 0:00:47]} 36. Qe2 {[%emt 0:00:39]} Ne7 {[%emt 0:00:54]} 37. Nb1 {[%emt 0:01:45]} Nd5 {[%emt 0:00:20]} 38. Qe1 {[%emt 0:00:11]} Kg8 {[%emt 0:00:55]} (38... Bf6 $5 {[%cal Rc7g7]}) 39. Na3 {[%emt 0:00:39]} Ne7 {[%emt 0:00:39]} 40. Qe2 {[%emt 0:00:33]} Bd5 {[%emt 0:05:03]} 41. Bf3 {[%emt 0:07:57]} Bxf3 {[%emt 0:04:31]} 42. Qxf3 {[%emt 0:00:15]} Qd7 {[%emt 0:00:06]} 43. Qb3+ {[%emt 0:02:47]} Qd5 {[%emt 0:02:57]} 44. Qc2 {[%emt 0:01:58]} Qd4 {[%emt 0:01:57]} ({Black should try} 44... Qe4 $11) 45. Bg1 {[%emt 0:01:11]} (45. Nc4 $14 {is the one way to stay ahead.}) 45... Qxb4 {[%emt 0:00:29] Black is more active.} 46. Qc4+ {[%emt 0:00:23]} (46. Nc4 $17) 46... Qxc4 {[%emt 0:00:07]} 47. Nxc4 $19 {[%emt 0:00:04][%mdl 4096] Endgame KBN-KBN} Nc8 {[%emt 0:00:51]} 48. f3 {[%emt 0:01:22]} Kf7 {[%emt 0:00:19]} 49. Kh2 {[%emt 0:06:28]} (49. g4 {is a better defense.}) 49... Ke6 {[%emt 0:00:08]} 50. Kg3 {[%emt 0:00:21]} Bh6 {[%emt 0:01:09] aiming for ...Kd5.} 51. Kh4 {[%emt 0:02:07]} f4 {[%emt 0:01:31]} 52. Kh5 {[%emt 0:01:38]} Bf8 {[%emt 0:00:05]} 53. Nd2 {[%emt 0:01:53]} Be7 {[%emt 0:14:30] ...Bd8 would be deadly.} 54. Kh6 $2 {[%emt 0:02:16] [#]} (54. Bf2 $17 {might work better.}) 54... Bd8 $1 {[%emt 0:00:11]} 55. Kxh7 $2 {[%emt 0:04:37]} (55. Nc4) 55... Bxa5 {[%emt 0:01:22] Black is clearly winning.} 56. Nc4 {[%emt 0:00:54]} Be1 {[%emt 0:00:09]} 57. h4 {[%emt 0:00:28]} Bxh4 {[%emt 0:00:51]} 58. Na5 {[%emt 0:00:11]} Be1 {[%emt 0:00:26]} 59. Nxb7 {[%emt 0:00:50]} a5 {[%emt 0:00:03][%cal Ba6a5,Ba5a4][%mdl 32] Threatens to win with ...a4.} 60. Nd8+ {[%emt 0:00:57]} Kd7 {[%emt 0:00:05]} 61. Nf7 {[%emt 0:00:14]} Bc3 {[%emt 0:00:27]} 62. Ng5 {[%emt 0:00:58]} a4 {[%emt 0:00:10]} 63. Ne4 {[%emt 0:00:23]} Bb4 {[%emt 0:00:05] Black used his chance.   Weighted Error Value: White=0.58/Black=0.25 (precise) .  Loses game:     	White=1     	Black=1      Missed win:     	White=1     	---        Mistake:       	White=7     	Black=5      Inaccurate:     	White=10    	Black=5      OK:         	White=11    	Black=16     Best:        	White=1     	Black=1      Strong:       	---       	Black=1      Brilliant:      	---       	---} 0-1

[Event "DFMM-LV 2023"]
[Site "Braunfels"]
[Date "2023.06.10"]
[Round "4.29"]
[White "Buchholz, Maja Patricia"]
[Black "Stark, Amalia"]
[Result "1/2-1/2"]
[Annotator "NA RC COMBH"]
[ECO "E61"]
[WhiteElo "1899"]
[BlackElo "1499"]
[PlyCount "92"]
[EventDate "2023.06.09"]
[EventType "team-tourn"]
[EventCountry "GER"]
[SourceTitle "playchess.com"]
[Source "ChessBase"]
[SourceQuality "1"]
[TimeControl "40/5400+30:1800+30"]

1. c4 {[%emt 0:00:05]} Nf6 {[%emt 0:00:07]} 2. g3 {[%emt 0:00:10]} g6 {[%emt 0:00:08]} 3. Bg2 {[%emt 0:00:09]} Bg7 {[%emt 0:00:12]} 4. Nc3 {[%emt 0:00:15]} d6 {[%emt 0:00:36]} 5. d4 {[%emt 0:00:27]} Nc6 {[%emt 0:04:18]} 6. d5 {[%emt 0:08:04]} Nb8 {[%emt 0:13:06]} 7. Nf3 {[%emt 0:06:11]} O-O {[%emt 0:02:55]} 8. e4 {[%emt 0:03:59]} e6 {[%emt 0:03:49]} 9. O-O {[%emt 0:02:15]} exd5 {[%emt 0:00:59]} 10. exd5 {[%emt 0:04:23]} Bf5 {[%emt 0:06:41]} 11. h3 {[%emt 0:02:13]} Na6 {[%emt 0:01:32]} 12. Nd4 {[%emt 0:02:43]} Bd7 {[%emt 0:02:03]} 13. Be3 {[%emt 0:03:08]} Rc8 {[%emt 0:02:21]} 14. Ndb5 {[%emt 0:05:05]} b6 {[%emt 0:20:13]} 15. Nxa7 {[%emt 0:01:23]} Ra8 {[%emt 0:00:19]} 16. Nc6 {[%emt 0:10:43]} Bxc6 {[%emt 0:01:05]} 17. dxc6 {[%emt 0:00:03]} Re8 {[%emt 0:02:13]} 18. Qd2 {[%emt 0:06:29]} Nc5 {[%emt 0:03:48]} 19. Bg5 {[%emt 0:01:47]} Re5 {[%emt 0:02:22]} 20. b4 {[%emt 0:04:46]} Ne6 {[%emt 0:06:26]} 21. Be3 {[%emt 0:05:00]} Rb8 {[%emt 0:01:48]} 22. f4 {[%emt 0:00:42]} Rxe3 {[%emt 0:05:32]} 23. Qxe3 {[%emt 0:00:08]} Nd5 {[%emt 0:01:48]} 24. Qd3 {[%emt 0:11:51]} Nxc3 {[%emt 0:01:13]} 25. a4 {[%emt 0:02:01]} Nd4 {[%emt 0:01:16]} 26. Kh2 {[%emt 0:00:52]} Nf5 {[%emt 0:00:49]} 27. Ra3 {[%emt 0:02:30]} Ra8 {[%emt 0:02:07]} 28. a5 {[%emt 0:01:49]} bxa5 {[%emt 0:01:21]} 29. bxa5 {[%emt 0:01:25]} Qf6 {[%emt 0:01:15]} 30. Rc1 {[%emt 0:00:41]} Qe6 {[%emt 0:00:37]} 31. Rcxc3 {[%emt 0:01:17]} Bxc3 {[%emt 0:00:01]} 32. Qxc3 {[%emt 0:00:07]} Qe2 {[%emt 0:01:02]} 33. a6 {[%emt 0:01:53]} Qf2 {[%emt 0:00:27]} 34. Qb3 {[%emt 0:04:34]} h5 {[%emt 0:05:05]} 35. Ra2 {[%emt 0:01:16]} Qd4 {[%emt 0:00:55]} 36. h4 {[%emt 0:01:46]} Ne3 {[%emt 0:01:04]} 37. Bd5 {[%emt 0:02:00]} Ng4+ {[%emt 0:00:56]} 38. Kh3 {[%emt 0:01:02]} Qg1 {[%emt 0:01:42]} 39. a7 {[%emt 0:01:01]} Qf1+ {[%emt 0:02:08]} 40. Bg2 {[%emt 0:00:15]} Qg1 {[%emt 0:02:26]} 41. Qb8+ {[%emt 0:31:47]} Rxb8 {[%emt 0:30:02]} 42. axb8=Q+ {[%emt 0:00:28]} Kh7 {[%emt 0:00:05]} 43. Be4 {[%emt 0:00:00]} Qf1+ {[%emt 0:00:00]} 44. Bg2 {[%emt 0:00:00]} Qg1 {[%emt 0:00:00]} 45. Bd5 {[%emt 0:00:00]} Qf1+ {[%emt 0:00:00]} 46. Bg2 {[%emt 0:00:00]} Qg1 {[%emt 0:00:00]} 1/2-1/2

[Event "DFMM-LV 2023"]
[Site "Braunfels"]
[Date "2023.06.10"]
[Round "4.30"]
[White "Alferova, Emily"]
[Black "Froehlich-Dill, Astrid"]
[Result "0-1"]
[Annotator "NA RC COMBH"]
[ECO "B00"]
[WhiteElo "1612"]
[BlackElo "1762"]
[PlyCount "62"]
[EventDate "2023.06.09"]
[EventType "team-tourn"]
[EventCountry "GER"]
[SourceTitle "playchess.com"]
[Source "ChessBase"]
[SourceQuality "1"]
[TimeControl "40/5400+30:1800+30"]

1. e4 {[%emt 0:00:03]} e6 {[%emt 0:00:48]} 2. d4 {[%emt 0:00:07]} b6 {[%emt 0:00:04]} 3. Bd3 {[%emt 0:00:22]} Bb7 {[%emt 0:00:07]} 4. Nf3 {[%emt 0:00:39]} Nf6 {[%emt 0:00:53]} 5. Qe2 {[%emt 0:01:41]} Be7 {[%emt 0:03:21]} 6. e5 {[%emt 0:05:02]} Nd5 {[%emt 0:02:46]} 7. Be4 {[%emt 0:05:53]} c6 {[%emt 0:06:20]} 8. O-O {[%emt 0:24:33]} O-O {[%emt 0:05:07]} 9. a3 {[%emt 0:24:07]} a5 {[%emt 0:06:16]} 10. c4 {[%emt 0:03:27]} f5 {[%emt 0:08:57]} 11. cxd5 {[%emt 0:10:27]} fxe4 {[%emt 0:01:05]} 12. Qxe4 {[%emt 0:00:04]} cxd5 {[%emt 0:08:12]} 13. Qg4 {[%emt 0:00:40]} Ba6 {[%emt 0:02:37]} 14. Re1 {[%emt 0:01:29]} Bd3 {[%emt 0:05:15]} 15. Nc3 {[%emt 0:12:35]} Nc6 {[%emt 0:04:02]} 16. Be3 {[%emt 0:02:04]} b5 {[%emt 0:03:03]} 17. Rad1 {[%emt 0:01:05]} Bf5 {[%emt 0:00:54]} 18. Qg3 {[%emt 0:00:58]} b4 {[%emt 0:03:07]} 19. Nb5 {[%emt 0:02:58]} bxa3 {[%emt 0:05:47]} 20. Nxa3 {[%emt 0:01:28]} Rb8 {[%emt 0:00:39]} 21. Bc1 {[%emt 0:00:33]} Be4 {[%emt 0:07:04]} 22. Bh6 {[%emt 0:00:39]} Bg6 {[%emt 0:01:17]} 23. Bc1 {[%emt 0:00:13]} Rf7 {[%emt 0:03:02]} 24. Re2 {[%emt 0:00:47]} Bh5 {[%emt 0:02:20]} 25. Rd3 {[%emt 0:00:34]} Qf8 {[%emt 0:00:50]} 26. Ree3 {[%emt 0:00:30]} Kh8 {[%emt 0:04:45]} 27. b3 {[%emt 0:00:28]} Bxa3 {[%emt 0:00:33]} 28. Ng5 {[%emt 0:00:32]} Bxc1 {[%emt 0:01:33]} 29. Nxf7+ {[%emt 0:00:22]} Qxf7 {[%emt 0:01:09]} 30. Re1 {[%emt 0:00:20]} Bf4 {[%emt 0:01:55]} 31. Qh3 {[%emt 0:00:41]} Qg6 {[%emt 0:01:19]} 0-1

[Event "DFMM-LV 2023"]
[Site "Braunfels"]
[Date "2023.06.10"]
[Round "4.31"]
[White "von Beckh, Frieda"]
[Black "Schaefer, Ann-Kathrin"]
[Result "1-0"]
[Annotator "NA RC COMBH"]
[ECO "B23"]
[WhiteElo "1672"]
[BlackElo "1695"]
[PlyCount "41"]
[EventDate "2023.06.09"]
[EventType "team-tourn"]
[EventCountry "GER"]
[SourceTitle "playchess.com"]
[Source "ChessBase"]
[SourceQuality "1"]
[TimeControl "40/5400+30:1800+30"]

1. e4 {[%emt 0:00:04]} c5 {[%emt 0:00:04]} 2. Nc3 {[%emt 0:00:07]} Nc6 {[%emt 0:00:04]} 3. f4 {[%emt 0:00:05]} g6 {[%emt 0:00:05]} 4. Nf3 {[%emt 0:00:05]} Bg7 {[%emt 0:00:05]} 5. Bb5 {[%emt 0:00:05]} Nd4 {[%emt 0:00:25]} 6. O-O {[%emt 0:00:08]} Nxb5 {[%emt 0:02:04]} 7. Nxb5 {[%emt 0:00:12]} a6 {[%emt 0:00:34]} 8. Nc3 {[%emt 0:00:08]} e6 {[%emt 0:01:40]} 9. d4 {[%emt 0:03:06]} cxd4 {[%emt 0:01:56]} 10. Nxd4 {[%emt 0:00:11]} Qb6 {[%emt 0:01:43]} 11. Be3 {[%emt 0:03:32]} Qxb2 {[%emt 0:06:39]} 12. Qd3 {[%emt 0:01:26]} Qa3 {[%emt 0:02:39]} 13. Rab1 {[%emt 0:03:50]} Ne7 {[%emt 0:02:09]} 14. f5 {[%emt 0:02:45]} exf5 {[%emt 0:02:30]} 15. exf5 {[%emt 0:01:33]} gxf5 {[%emt 0:03:13]} 16. Nxf5 {[%emt 0:05:26]} Be5 {[%emt 0:11:39]} 17. Rb3 {[%emt 0:02:48]} Qa5 {[%emt 0:00:54]} 18. Bb6 {[%emt 0:01:23]} Qxc3 {[%emt 0:02:28]} 19. Rxc3 {[%emt 0:00:12]} Bxc3 {[%emt 0:00:04]} 20. Nd6+ {[%emt 0:00:16]} Kf8 {[%emt 0:00:11]} 21. Rxf7+ {[%emt 0:00:12]} 1-0